bitfinex/quotes_SOLUSD_20241007
["timestamp","ask_amount","ask_price","bid_price","bid_amount"]
[1728264843128,6.668,149.97,149.91,16.6764]
[1728264843129,6.6667,150.0,149.93,16.6736]
[1728264844132,6.6667,150.0,149.95,6.6685]
[1728264844535,35.041,150.01,149.93,16.6736]
[1728264844962,6.6676,149.98,149.93,23.343]
[1728264845132,35.041,150.01,149.89,23.18863953]
[1728264845334,6.6684,149.97,149.9,16.80289]
[1728264845846,6.6675,149.98,149.93,6.6697]
[1728264847243,20.0,149.99,149.9,23.348]
[1728264847439,6.669,149.95,149.9,16.6774]
[1728264847639,6.669,149.95,149.91,6.6706]
[1728264847950,6.6687,149.96,149.92,6.6701]
[1728264849038,26.6671,149.99,149.94,6.6692]
[1728264849347,21.7073,150.01,149.96,23.3386]
[1728264850046,15.041,150.01,149.97,6.6675]
[1728264850240,21.7072,150.01,149.96,23.3386]
[1728264850565,6.6672,149.99,149.94,6.6693]
[1728264852164,15.041,150.01,149.96,6.668]
[1728264852366,15.041,150.01,149.87,16.0936]
[1728264852367,43.776884,149.99,149.87,16.0936]
[1728264852536,6.6679,149.98,149.92,6.67]
[1728264852958,20.0,149.99,149.89,16.6785]
[1728264853844,6.6683,149.97,149.92,6.6701]
[1728264854049,6.6685,149.96,149.9,0.25098]
[1728264854355,6.668,149.97,149.92,6.6701]
[1728264855969,6.6678,149.98,149.93,6.6697]
[1728264857968,6.668,149.97,149.93,6.6697]
[1728264858858,6.668,149.97,149.92,6.79559]
[1728264859060,6.668,149.97,149.92,6.6701]
[1728264860059,6.6685,149.96,149.91,23.3465]
[1728264860371,6.6685,149.96,149.92,6.79559]
[1728264860969,6.6683,149.97,149.92,6.79559]
[1728264863372,6.6683,149.97,149.93,6.6696]
[1728264865654,26.6671,149.99,149.92,0.12549]
[1728264865856,21.7073,150.01,149.96,6.6683]
[1728264869053,6.6666,150.0,149.96,6.6683]
[1728264870354,15.041,150.01,149.93,6.6693]
[1728264870355,6.6676,149.98,149.93,6.6693]
[1728264870682,15.041,150.01,149.94,6.6689]
[1728264870683,6.6671,149.99,149.94,6.6689]
[1728264872474,6.6671,149.99,149.95,6.6688]
[1728264873786,21.7073,150.01,149.96,6.668]
[1728264873971,21.7073,150.01,149.94,0.12549]
[1728264873972,15.041,150.01,149.94,0.12549]
[1728264874177,21.7072,150.01,149.97,23.3367]
[1728264875189,15.041,150.01,149.97,23.3367]
[1728264875491,51.7052537,150.02,149.97,23.3367]
[1728264881785,45.0394537,150.02,149.97,16.6692]
[1728264881990,45.0394537,150.02,150.0,0.25098]
[1728264882164,45.0394537,150.02,150.0,1.5839452]
[1728264882369,45.0394537,150.02,150.0,21.5839452]
[1728264882688,45.0394537,150.02,150.0,21.4584552]
[1728264882989,45.0394537,150.02,150.01,6.6662]
[1728264883490,45.0394537,150.02,150.01,6.79169]
[1728264888565,45.0394537,150.02,150.01,6.6662]
[1728264889095,45.0394537,150.02,150.01,6.79169]
[1728264890402,45.0394537,150.02,150.01,19.08743238]
[1728264893493,45.0394537,150.02,150.01,6.6662]
[1728264893666,45.0394537,150.02,150.01,6.79169]
[1728264894493,45.0394537,150.02,150.01,6.6662]
[1728264897974,45.0394537,150.02,149.99,16.6668]
[1728264898175,61.2908537,150.02,149.99,23.3338]
[1728264898790,61.2908537,150.02,149.99,16.6668]
[1728264898996,61.2908537,150.02,150.01,6.6662]
[1728264899302,45.0394537,150.02,150.01,6.6662]
[1728264905208,45.0394537,150.02,150.01,19.08743238]
[1728264909509,45.0394537,150.02,150.01,6.6662]
[1728264911289,45.0394537,150.02,149.99,23.3334]
[1728264911500,45.0394537,150.02,150.01,6.6662]
[1728264912694,45.0394537,150.02,150.01,18.96194238]
[1728264913214,45.0394537,150.02,150.01,19.08743238]
[1728264913390,45.0394537,150.02,150.01,20.42034809]
[1728264913600,45.0394537,150.02,150.01,20.54583809]
[1728264914110,45.0394537,150.02,150.01,19.21292238]
[1728264915316,45.0394537,150.02,150.01,112.98980638]
[1728264916699,45.0394537,150.02,150.01,114.32263609]
[1728264917141,5.52922613,150.02,150.01,114.32263609]
[1728264917413,0.854171,150.06,150.05,26.91538]
[1728264917602,0.854171,150.06,150.05,62.98800638]
[1728264918602,0.854171,150.06,150.05,112.98800638]
[1728264919711,0.854171,150.06,150.05,114.32014371]
[1728264920102,15.3446,150.14,150.12,6.6612]
[1728264920307,15.3446,150.14,150.11,16.6538]
[1728264921320,15.3446,150.14,150.12,6.6612]
[1728264923316,15.3446,150.14,150.11,16.6538]
[1728264923317,15.3446,150.14,150.08,16.6575]
[1728264923522,15.3446,150.14,150.11,6.6615]
[1728264923711,15.3446,150.14,150.1,6.6621]
[1728264923911,22.0051,150.14,150.08,23.3201]
[1728264924126,22.0051,150.14,150.09,6.6626]
[1728264924331,15.3446,150.14,150.09,6.6626]
[1728264924512,15.3446,150.14,150.1,6.6619]
[1728264925031,15.3446,150.14,150.11,7.99383007]
[1728264925904,15.3446,150.14,150.11,6.6616]
[1728264926927,15.3446,150.14,150.1,16.6547]
[1728264927150,15.3446,150.14,150.1,23.3165]
[1728264928439,15.3446,150.14,150.11,7.99377397]
[1728264928604,15.3446,150.14,150.11,6.6616]
[1728264931522,15.3446,150.14,150.1,16.6547]
[1728264931523,22.005,150.14,150.1,16.6547]
[1728264931709,20.0,150.13,150.05,16.6606]
[1728264931910,6.3817,150.12,150.05,16.6606]
[1728264932135,6.6622,150.1,150.05,23.3249]
[1728264932324,6.6618,150.11,150.06,6.6639]
[1728264933432,6.6618,150.11,150.05,16.6606]
[1728264933433,13.0431,150.12,150.07,6.6634]
[1728264933623,6.3817,150.12,150.07,16.6579]
[1728264933828,6.3817,150.12,150.07,17.990368]
[1728264934219,6.3817,150.12,150.05,12.29574238]
[1728264934517,15.3446,150.14,150.11,6.6617]
[1728264936649,15.3446,150.14,150.13,6.6608]
[1728264937173,15.3446,150.14,150.11,23.3153]
[1728264937923,15.3446,150.14,150.12,6.6612]
[1728264939027,15.3446,150.14,150.11,23.3152]
[1728264940747,15.3446,150.14,150.08,16.6573]
[1728264941435,6.6608,150.13,150.09,6.6626]
[1728264941635,20.0,150.12,150.08,16.6573]
[1728264941835,20.0,150.12,150.08,23.3203]
[1728264942848,20.0,150.13,150.09,6.6623]
[1728264943037,20.0,150.13,150.1,6.6621]
[1728264943347,20.0,150.13,150.09,6.6626]
[1728264944451,22.005,150.14,150.09,6.6626]
[1728264948050,6.6615,150.12,150.07,6.6632]
[1728264948229,26.6609,150.13,150.05,12.29574238]
[1728264948431,26.6609,150.13,150.07,16.6582]
[1728264948655,26.6609,150.13,150.08,6.6627]
[1728264948857,20.0,150.13,150.09,6.6626]
[1728264951040,20.0,150.13,150.11,6.6617]
[1728264951245,15.3446,150.14,150.13,6.6608]
[1728264953954,15.3446,150.14,150.11,16.6537]
[1728264954257,15.3446,150.14,150.12,6.6613]
[1728264956243,15.3446,150.14,150.13,6.6608]
[1728264957458,6.5637,150.16,150.11,16.6537]
[1728264957662,15.1805,150.17,150.13,16.6511]
[1728264958162,15.1805,150.17,150.14,6.6604]
[1728264958361,15.1805,150.17,150.13,23.3119]
[1728264958860,15.1805,150.17,150.15,6.6599]
[1728264959060,15.1805,150.17,150.16,6.6595]
[1728264960455,15.1805,150.17,150.13,16.6511]
[1728264960650,15.1805,150.17,150.15,6.6599]
[1728264961850,6.6578,150.2,150.13,16.6511]
[1728264961851,20.0,150.19,150.16,6.6595]
[1728264962260,20.0,150.19,150.15,6.6599]
[1728264963777,88.51273655,150.21,150.2,6.6577]
[1728264963778,71.97793655,150.21,150.2,6.6577]
[1728264964063,65.36113655,150.21,150.2,6.6577]
[1728264964365,65.36113655,150.21,150.18,6.6585]
[1728264964739,65.36113655,150.21,150.17,23.3061]
[1728264964939,72.01853655,150.21,150.14,28.94654238]
[1728264965955,72.01853655,150.21,150.16,6.6595]
[1728264966164,72.01853655,150.21,150.14,16.6508]
[1728264966165,6.6587,150.18,150.14,16.6508]
[1728264966381,20.0,150.17,150.11,28.94984238]
[1728264966546,20.0,150.17,150.15,6.6599]
[1728264966943,20.0,150.19,150.13,16.6515]
[1728264967147,26.6583,150.19,150.14,6.6603]
[1728264967366,20.0,150.19,150.13,16.6515]
[1728264967579,6.6591,150.17,150.13,16.6515]
[1728264968067,20.0,150.17,150.13,23.3123]
[1728264970077,6.6587,150.18,150.13,23.3123]
[1728264971272,20.0,150.19,150.13,16.6515]
[1728264971453,20.0,150.19,150.16,6.6595]
[1728264971652,16.0435,150.2,150.16,6.6595]
[1728264971852,20.0,150.19,150.16,6.6595]
[1728264972067,20.0,150.19,150.15,16.6491]
[1728264972370,20.0,150.19,150.15,23.309]
[1728264972568,16.0435,150.2,150.16,6.6595]
[1728264972779,6.6582,150.19,150.15,16.6491]
[1728264973285,6.6591,150.17,150.12,16.653]
[1728264973452,0.12549,150.18,150.12,23.3142]
[1728264973650,6.6591,150.17,150.13,6.6608]
[1728264973856,20.0,150.16,150.13,6.6608]
[1728264974370,20.12549,150.19,150.14,6.6603]
[1728264974562,26.78379,150.19,150.14,6.6603]
[1728264974764,20.12549,150.19,150.12,16.653]
[1728264974962,20.0,150.17,150.13,6.6608]
[1728264975162,20.0,150.17,150.12,16.653]
[1728264975474,15.8543,150.14,150.04,15.0379]
[1728264975680,0.12549,150.11,150.05,16.66]
[1728264975872,20.0,150.1,150.05,23.3242]
[1728264976053,20.0,150.1,150.05,16.66]
[1728264976383,15.8543,150.14,150.04,12.29574238]
[1728264976384,22.5148,150.14,150.04,12.29574238]
[1728264976554,20.0,150.13,150.11,6.6617]
[1728264976747,20.0,150.13,150.08,12.29574238]
[1728264976748,20.0,150.16,150.09,16.6555]
[1728264977056,26.6598,150.16,150.11,6.6617]
[1728264978862,26.78459,150.17,150.12,6.6612]
[1728264979064,26.6591,150.17,150.12,6.6612]
[1728264979265,20.0,150.17,150.12,6.6612]
[1728264979460,20.0,150.17,150.12,16.6531]
[1728264979665,15.2362,150.22,150.12,28.94884238]
[1728264979858,15.2362,150.22,150.16,6.6595]
[1728264980055,21.8935,150.22,150.14,28.94584238]
[1728264980370,15.2362,150.22,150.18,6.6586]
[1728264980567,15.2362,150.22,150.16,16.6479]
[1728264980869,21.8931,150.22,150.16,23.307]
[1728264981759,20.0,150.2,150.16,23.307]
[1728264982379,21.8931,150.22,150.16,23.307]
[1728264983082,72.01853655,150.21,150.16,23.307]
[1728264983372,72.01853655,150.21,150.16,16.6479]
[1728264983580,20.12549,150.2,150.14,6.6603]
[1728264983877,23.902374,150.2,150.15,6.6599]
[1728264984669,30.560474,150.2,150.15,6.6599]
[1728264985068,23.902374,150.2,150.13,16.6521]
[1728264985564,23.902374,150.2,150.15,6.6598]
[1728264985765,30.560374,150.2,150.15,6.6598]
[1728264987981,6.6583,150.19,150.13,23.3125]
[1728264988185,6.6583,150.19,150.13,16.6521]
[1728264988365,6.6583,150.19,150.14,6.6602]
[1728264989884,6.6595,150.16,150.11,6.6617]
[1728264990577,6.66,150.15,150.1,16.6554]
[1728264991074,20.0,150.15,150.1,23.3172]
[1728264991769,20.0,150.15,150.11,6.6616]
[1728264991975,20.0,150.15,150.12,6.6613]
[1728264992282,6.6596,150.16,150.12,6.6613]
[1728264992283,20.0,150.16,150.12,6.6613]
[1728264994089,26.6599,150.16,150.1,16.6554]
[1728264994670,26.6599,150.16,150.11,6.6617]
[1728264995584,20.0,150.16,150.11,12.29574238]
[1728264996282,20.0,150.16,150.12,6.6613]
[1728264997491,6.66,150.15,150.11,18.95744238]
[1728264998085,20.0,150.16,150.07,16.6588]
[1728264998086,30.564074,150.11,150.07,16.6588]
[1728264998258,20.0,150.1,150.04,29.413]
[1728264998463,26.6626,150.1,150.05,6.6642]
[1728264998658,30.565074,150.09,150.04,16.6618]
[1728264998882,20.0,150.08,150.04,16.6618]
[1728264999073,33.2941,150.18,150.04,16.6618]
[1728264999074,15.6229,150.14,150.06,12.29574238]
[1728264999381,20.12549,150.15,150.11,12.29574238]
[1728264999776,20.12549,150.15,150.1,6.6621]
[1728265000082,20.0,150.14,150.09,35.61404238]
[1728265001490,20.0,150.14,150.1,6.6621]
[1728265004976,6.78589,150.15,150.09,28.95144238]
[1728265004977,0.12549,150.15,150.09,28.95144238]
[1728265005183,23.902374,150.15,150.11,18.95744238]
[1728265005573,23.902374,150.15,150.04,6.3077]
[1728265005774,36.1883,150.12,150.04,6.3077]
[1728265006080,23.902374,150.07,150.03,16.663]
[1728265006287,20.0,150.08,150.03,23.3282]
[1728265006475,20.12549,150.09,150.03,16.663]
[1728265006680,16.1883,150.12,150.06,12.29574238]
[1728265006882,20.0,150.11,150.08,6.6631]
[1728265007081,20.0,150.11,150.09,6.6626]
[1728265007281,44.027864,150.13,150.09,6.6626]
[1728265007477,43.902374,150.13,150.08,12.29574238]
[1728265007682,50.563274,150.13,150.08,6.6629]
[1728265008097,0.12549,150.12,150.06,16.6598]
[1728265008292,20.0,150.09,150.03,12.29574238]
[1728265008493,20.0,150.09,150.05,6.6643]
[1728265009003,43.902374,150.1,150.05,6.6643]
[1728265009199,0.12549,150.09,150.05,6.6643]
[1728265009603,6.6631,150.08,150.02,16.6635]
[1728265009904,43.902374,150.07,150.03,6.6652]
[1728265012506,43.902374,150.07,150.06,6.664]
[1728265012810,43.902374,150.07,150.05,23.3251]
[1728265013104,23.776884,150.07,150.06,6.664]
[1728265013403,15.896,150.1,150.05,16.6607]
[1728265013708,15.896,150.1,150.05,23.325]
[1728265014582,22.5583,150.1,150.05,23.325]
[1728265014785,44.027864,150.09,150.05,23.325]
[1728265015003,43.902374,150.09,150.06,6.6639]
[1728265015682,43.776884,150.09,150.06,6.6639]
[1728265015997,43.776884,150.09,150.07,6.6633]
[1728265016197,20.0,150.12,150.09,6.6626]
[1728265016817,20.0,150.13,150.09,6.6626]
[1728265017318,23.1811,150.14,150.09,6.63266]
[1728265017526,16.5205,150.14,150.06,6.6637]
[1728265017711,16.5205,150.14,150.04,12.29574238]
[1728265017910,6.6617,150.12,150.05,16.6602]
[1728265018112,24.027864,150.11,150.07,6.6634]
[1728265018436,23.776884,150.11,150.07,6.6634]
[1728265019003,23.776884,150.11,150.08,6.663]
[1728265019208,20.12549,150.11,150.08,6.663]
[1728265019603,23.776884,150.1,150.08,6.663]
[1728265020407,23.776884,150.1,150.07,6.6635]
[1728265020906,23.776884,150.1,150.05,16.6602]
[1728265020907,23.776884,150.1,150.06,6.6639]
[1728265021101,0.12549,150.09,150.05,23.3245]
[1728265021521,0.12549,150.09,150.06,6.6639]
[1728265021706,23.776884,150.1,150.07,6.6633]
[1728265022231,0.12549,150.09,150.07,6.6633]
[1728265022726,0.12549,150.09,150.06,6.6639]
[1728265023103,0.12549,150.09,150.01,34.79409633]
[1728265023104,20.12549,150.07,150.02,16.6643]
[1728265023411,23.776884,150.06,150.03,6.6651]
[1728265024024,23.776884,150.06,150.04,6.6645]
[1728265024209,30.440884,150.06,150.02,16.6643]
[1728265024414,23.776884,150.06,150.02,16.6643]
[1728265024714,23.776884,150.06,150.03,6.6652]
[1728265024915,23.776884,150.06,150.05,6.6644]
[1728265025127,20.0,150.11,150.07,6.6635]
[1728265026819,20.0,150.09,150.07,6.6635]
[1728265027212,20.0,150.11,150.07,16.658]
[1728265027798,20.0,150.14,150.07,16.658]
[1728265028625,24.027864,150.1,150.04,16.662]
[1728265029417,23.902374,150.1,150.08,6.6628]
[1728265029619,23.902374,150.1,150.06,16.659]
[1728265029841,23.776884,150.09,150.06,23.3226]
[1728265031544,44.027864,150.1,150.06,23.3226]
[1728265031728,30.690064,150.1,150.06,23.3226]
[1728265031927,6.6627,150.09,150.04,6.6644]
[1728265032112,23.902374,150.08,150.04,6.6644]
[1728265032923,23.902374,150.08,150.05,6.6644]
[1728265033315,6.78789,150.1,150.05,6.6644]
[1728265033316,24.027864,150.09,150.05,6.6644]
[1728265033531,0.25098,150.08,150.05,6.6644]
[1728265034441,0.25098,150.08,150.03,22.512]
[1728265034622,0.25098,150.08,150.02,22.8538]
[1728265034623,0.12549,150.06,150.02,16.6633]
[1728265034818,0.12549,150.06,149.99,49.1031]
[1728265034819,23.902374,150.04,150.0,6.6666]
[1728265036618,23.902374,150.02,149.98,16.6678]
[1728265037345,23.902374,150.02,149.99,6.667]
[1728265037528,23.902374,150.02,149.98,23.3352]
[1728265037838,23.902374,150.02,149.99,6.667]
[1728265038636,23.902374,150.02,149.98,16.6678]
[1728265038637,23.902374,150.02,149.98,23.3352]
[1728265039743,23.902374,150.02,149.99,6.667]
[1728265040337,23.902374,150.02,149.98,16.6678]
[1728265040537,30.568074,150.02,149.98,16.6678]
[1728265041125,23.902374,150.0,149.96,6.6683]
[1728265041334,23.902374,150.0,149.95,32.4415]
[1728265041837,0.12549,150.0,149.97,6.6679]
[1728265042934,0.12549,150.0,149.88,4.40982576]
[1728265042935,23.776884,149.99,149.91,32.0121]
[1728265043119,23.776884,149.97,149.93,6.6693]
[1728265044750,0.12549,149.96,149.93,6.6693]
[1728265045933,24.027864,149.98,149.94,6.6693]
[1728265046140,0.12549,149.97,149.94,6.6693]
[1728265047428,0.12549,149.97,149.93,6.6697]
[1728265047739,0.12549,149.97,149.94,6.6692]
[1728265047943,6.95771624,150.03,149.88,15.0871]
[1728265047944,20.0,150.01,149.88,15.0871]
[1728265048340,20.0,150.01,149.88,21.759]
[1728265048341,6.6698,149.93,149.88,21.759]
[1728265048650,6.6698,149.93,149.88,23.3516]
[1728265048849,6.6698,149.93,149.88,16.6797]
[1728265049247,0.12549,149.91,149.88,16.6797]
[1728265049547,0.25098,149.91,149.86,6.6728]
[1728265049930,23.776884,149.9,149.86,6.6728]
[1728265050249,23.776884,149.9,149.87,6.6723]
[1728265050927,30.698464,149.91,149.86,6.6728]
[1728265051128,30.698464,149.91,149.85,16.6833]
[1728265051129,26.6711,149.9,149.85,23.3566]
[1728265051329,23.776884,149.89,149.85,23.3566]
[1728265051835,23.776884,149.9,149.85,23.3566]
[1728265052151,20.12549,149.89,149.85,23.3566]
[1728265052355,23.776884,149.88,149.85,23.3566]
[1728265052736,0.12549,149.87,149.82,16.6866]
[1728265054137,0.12549,149.87,149.85,6.6732]
[1728265055557,23.776884,149.88,149.85,6.6732]
[1728265056556,44.027864,149.9,149.86,6.6727]
[1728265057767,44.027864,149.9,149.87,6.6723]
[1728265058565,0.12549,149.86,149.81,6.6746]
[1728265058871,23.902374,149.86,149.8,16.6878]
[1728265059466,24.027864,149.9,149.82,16.6857]
[1728265059767,24.027864,149.88,149.84,6.6737]
[1728265060443,24.027864,149.88,149.81,19.20609633]
[1728265060653,0.25098,149.88,149.85,23.3565]
[1728265060946,0.12549,149.88,149.85,23.3565]
[1728265061949,6.92398,149.86,149.82,6.6746]
[1728265062163,6.92398,149.86,149.81,16.6872]
[1728265062164,0.12549,149.86,149.83,6.6741]
[1728265063046,0.12549,149.86,149.82,6.6746]
[1728265063463,0.12549,149.86,149.81,16.6872]
[1728265063668,23.776884,149.87,149.84,6.6737]
[1728265063849,23.776884,149.87,149.82,6.6742]
[1728265064048,23.776884,149.87,149.83,6.6739]
[1728265064366,0.12549,149.86,149.81,16.6872]
[1728265064567,26.79839,149.86,149.81,23.3622]
[1728265064786,23.776884,149.85,149.81,23.3622]
[1728265065179,0.12549,149.84,149.81,16.6872]
[1728265065482,0.25098,149.84,149.81,16.6872]
[1728265065654,0.25098,149.84,149.8,6.6753]
[1728265066851,23.776884,149.86,149.8,16.6878]
[1728265067057,0.12549,149.85,149.83,6.6742]
[1728265067787,23.776884,149.86,149.83,6.6742]
[1728265068079,23.776884,149.87,149.84,6.6735]
[1728265068279,6.6715,149.89,149.84,6.6735]
[1728265068453,6.6722,149.88,149.83,6.6738]
[1728265069349,23.776884,149.87,149.83,6.6738]
[1728265069549,23.776884,149.87,149.84,6.6737]
[1728265069762,23.902374,149.88,149.84,6.6737]
[1728265071773,6.96135303,149.93,149.84,16.6833]
[1728265071979,15.7614,149.94,149.83,22.4653]
[1728265072157,15.7614,149.94,149.88,6.6719]
[1728265072479,6.2389,149.96,149.9,6.671]
[1728265072680,6.6689,149.95,149.9,6.671]
[1728265072849,6.6693,149.94,149.89,6.6714]
[1728265073252,6.2389,149.96,149.88,16.6793]
[1728265073253,6.6698,149.93,149.88,16.6793]
[1728265073473,6.6702,149.92,149.88,16.6793]
[1728265073658,6.6706,149.91,149.86,6.6728]
[1728265074074,23.902374,149.9,149.86,6.6728]
[1728265075175,0.12549,149.89,149.85,16.6832]
[1728265075354,0.12549,149.89,149.85,23.3565]
[1728265075749,6.79709,149.89,149.85,16.6832]
[1728265075970,23.902374,149.88,149.85,16.6832]
[1728265076182,6.6726,149.87,149.82,23.3609]
[1728265076356,23.902374,149.88,149.82,23.3609]
[1728265076357,23.902374,149.86,149.83,6.674]
[1728265076768,0.12549,149.86,149.83,6.674]
[1728265077081,0.12549,149.88,149.85,6.6731]
[1728265077256,44.027864,149.9,149.84,16.6834]
[1728265077573,20.0,149.9,149.87,6.6722]
[1728265077764,20.0,149.91,149.87,6.6722]
[1728265078176,20.0,149.92,149.88,6.6719]
[1728265078359,33.2095,149.95,149.89,6.6714]
[1728265078360,6.6694,149.94,149.89,6.6714]
[1728265078756,0.12549,149.93,149.89,6.6714]
[1728265079260,6.6694,149.94,149.89,6.6714]
[1728265080260,16.5373,149.95,149.88,16.679]
[1728265080459,0.12549,149.93,149.85,32.6532]
[1728265080773,0.12549,149.93,149.82,42.00999633]
[1728265080959,0.25098,149.93,149.82,42.00999633]
[1728265081163,24.027864,149.88,149.84,6.6736]
[1728265081576,24.027864,149.88,149.82,22.8039]
[1728265081779,24.027864,149.88,149.85,6.6733]
[1728265081973,23.902374,149.88,149.86,6.6727]
[1728265085658,20.0,149.94,149.86,16.6813]
[1728265086088,6.6707,149.91,149.86,23.3541]
[1728265086668,20.0,149.94,149.86,16.6813]
[1728265086867,20.0,149.91,149.88,6.6719]
[1728265087391,23.776884,149.9,149.88,6.6719]
[1728265088684,6.6688,149.95,149.89,16.6787]
[1728265089583,6.6688,149.95,149.89,23.3499]
[1728265089773,16.0733,149.99,149.89,23.3499]
[1728265089978,24.027864,149.93,149.89,23.3499]
[1728265090189,24.027864,149.93,149.86,19.20609633]
[1728265090190,24.027864,149.93,149.85,23.3565]
[1728265090503,24.027864,149.91,149.85,16.6832]
[1728265090667,30.697664,149.93,149.88,6.6718]
[1728265090990,30.697664,149.93,149.85,16.6832]
[1728265090991,24.027864,149.91,149.85,16.6832]
[1728265091180,24.027864,149.91,149.87,6.6723]
[1728265092067,24.027864,149.91,149.85,16.6832]
[1728265092295,30.698864,149.91,149.86,6.6728]
[1728265092594,30.698864,149.91,149.85,23.3564]
[1728265092595,24.027864,149.89,149.85,23.3564]
[1728265092791,20.12549,149.92,149.87,16.6804]
[1728265092991,23.776884,149.91,149.87,16.6804]
[1728265093165,23.776884,149.91,149.88,6.6716]
[1728265094786,20.0,149.92,149.87,16.6804]
[1728265094991,6.6702,149.92,149.88,6.6718]
[1728265095288,6.6702,149.92,149.87,6.6723]
[1728265096296,23.776884,149.91,149.87,6.6723]
[1728265096993,0.12549,149.91,149.88,6.6718]
[1728265100569,0.12549,149.91,149.86,16.6818]
[1728265100770,0.12549,149.91,149.88,6.6719]
[1728265102098,23.776884,149.92,149.89,6.6711]
[1728265102401,44.027864,149.93,149.89,6.6711]
[1728265103798,6.6702,149.92,149.88,16.6793]
[1728265104198,15.7631,149.97,149.9,35.88309633]
[1728265104399,15.8619,150.01,149.97,6.6679]
[1728265105394,15.8619,150.01,149.96,6.6684]
[1728265105796,20.0,150.0,149.96,6.6684]
[1728265106491,23.902374,149.99,149.96,6.6684]
[1728265106908,22.5281,150.01,149.96,6.6684]
[1728265106909,22.6472,150.04,149.96,22.393]
[1728265107078,15.9823,150.04,149.98,16.6679]
[1728265107282,22.6471,150.04,149.98,23.3351]
[1728265107801,6.6653,150.03,149.98,16.6679]
[1728265107980,6.6663,150.01,149.95,6.6684]
[1728265108304,0.12549,149.99,149.95,6.6684]
[1728265110089,0.12549,149.99,149.94,16.6726]
[1728265110399,0.12549,149.99,149.94,23.3418]
[1728265110591,0.12549,149.96,149.9,16.6768]
[1728265110900,0.12549,149.96,149.91,6.6702]
[1728265110901,6.79389,149.96,149.91,6.6702]
[1728265111277,0.12549,149.99,149.87,22.1825]
[1728265111278,6.6698,149.93,149.87,28.8547]
[1728265111501,6.6698,149.93,149.88,6.6719]
[1728265112084,0.25098,149.94,149.88,6.6719]
[1728265112799,6.6699,149.93,149.88,6.6719]
[1728265113003,24.027864,149.92,149.87,13.2293]
[1728265114608,26.79389,149.96,149.91,6.6706]
[1728265114999,20.12549,149.96,149.91,6.6706]
[1728265115307,20.12549,149.96,149.92,6.67]
[1728265115510,16.4277,149.97,149.92,23.3445]
[1728265116512,16.4277,149.97,149.93,6.6697]
[1728265116896,16.4277,149.97,149.92,23.3449]
[1728265117409,0.12549,149.96,149.92,23.3449]
[1728265118112,24.027864,149.96,149.92,23.3449]
[1728265118708,6.6675,149.99,149.92,16.6747]
[1728265118889,6.6656,150.03,149.97,6.6675]
[1728265119215,6.6656,150.03,149.95,16.6718]
[1728265119403,6.6656,150.03,149.98,6.6674]
[1728265119788,6.6656,150.03,149.95,16.6718]
[1728265120005,6.6662,150.01,149.95,23.3406]
[1728265120392,6.6667,150.0,149.95,23.3406]
[1728265120587,23.902374,149.99,149.95,16.6718]
[1728265120794,23.902374,150.01,149.97,6.6678]
[1728265120994,0.12549,150.0,149.95,23.3402]
[1728265121196,6.79219,150.0,149.95,23.3402]
[1728265121418,0.12549,149.98,149.94,6.6693]
[1728265121595,0.12549,149.98,149.92,6.6697]
[1728265122016,0.25098,149.96,149.92,6.6697]
[1728265122396,0.12549,149.96,149.93,6.6696]